[Event "Late-Titled-Tuesday-Blitz-April-16-2024"]
[Site "Chess.com"]
[Date "2024.04.16"]
[Round "5"]
[White "1g60-1"]
[Black "volcanoexplorer"]
[Result "1/2-1/2"]
[WhiteElo "2444"]
[BlackElo "2632"]
[TimeControl "180+1"]
[EndTime "14:54:04 PDT"]
[Termination "Game drawn by stalemate"]

1. e4 {[%clk 0:03:00.9]} 1... e5 {[%clk 0:02:56.6]} 2. Nf3 {[%clk 0:03:01.1]}
2... Nc6 {[%clk 0:02:54]} 3. Bb5 {[%clk 0:03:01.1]} 3... a6 {[%clk 0:02:54.1]}
4. Ba4 {[%clk 0:03:01.6]} 4... Nf6 {[%clk 0:02:53.6]} 5. d3 {[%clk 0:03:02]}
5... b5 {[%clk 0:02:54]} 6. Bb3 {[%clk 0:03:02.2]} 6... Bc5 {[%clk 0:02:54.7]}
7. c3 {[%clk 0:03:02.7]} 7... d6 {[%clk 0:02:55.2]} 8. O-O {[%clk 0:03:02.9]}
8... O-O {[%clk 0:02:55.4]} 9. h3 {[%clk 0:03:03.2]} 9... Bb6 {[%clk 0:02:51.1]}
10. Re1 {[%clk 0:03:03]} 10... Ne7 {[%clk 0:02:50.2]} 11. Nbd2 {[%clk 0:03:03]}
11... Ng6 {[%clk 0:02:50.3]} 12. Nf1 {[%clk 0:03:03.7]} 12... c5 {[%clk
0:02:50.6]} 13. d4 {[%clk 0:03:01.8]} 13... c4 {[%clk 0:02:48.8]} 14. Bc2 {[%clk
0:03:02]} 14... Bb7 {[%clk 0:02:45.2]} 15. Ng3 {[%clk 0:03:01.8]} 15... Re8
{[%clk 0:02:33.3]} 16. a4 {[%clk 0:02:54.1]} 16... exd4 {[%clk 0:02:00.7]} 17.
cxd4 {[%clk 0:02:52.9]} 17... b4 {[%clk 0:02:01.4]} 18. Nd2 {[%clk 0:02:00.9]}
18... Rc8 {[%clk 0:01:58.8]} 19. Qe2 {[%clk 0:01:50.7]} 19... d5 {[%clk
0:01:55.1]} 20. a5 {[%clk 0:01:27.9]} 20... Bxd4 {[%clk 0:01:51.6]} 21. Nf3
{[%clk 0:01:25.4]} 21... dxe4 {[%clk 0:01:48.6]} 22. Nxd4 {[%clk 0:01:25.8]}
22... Qxd4 {[%clk 0:01:48.6]} 23. Be3 {[%clk 0:01:20]} 23... Qe5 {[%clk
0:01:27.2]} 24. Ba4 {[%clk 0:01:16]} 24... Re7 {[%clk 0:01:23.7]} 25. Rac1
{[%clk 0:01:13.3]} 25... c3 {[%clk 0:01:17.5]} 26. bxc3 {[%clk 0:01:09.1]} 26...
bxc3 {[%clk 0:01:17.8]} 27. Bb6 {[%clk 0:01:03.5]} 27... Nd5 {[%clk 0:01:16.6]}
28. Qg4 {[%clk 0:00:59.6]} 28... Nxb6 {[%clk 0:00:45]} 29. axb6 {[%clk
0:01:00.5]} 29... Qf4 {[%clk 0:00:41.1]} 30. Qe2 {[%clk 0:00:37.1]} 30... Qd6
{[%clk 0:00:33.3]} 31. Nf5 {[%clk 0:00:33]} 31... Qxb6 {[%clk 0:00:33]} 32.
Nxe7+ {[%clk 0:00:32.1]} 32... Nxe7 {[%clk 0:00:33.9]} 33. Qg4 {[%clk
0:00:28.4]} 33... f5 {[%clk 0:00:31.6]} 34. Qf4 {[%clk 0:00:26]} 34... Qf6
{[%clk 0:00:13]} 35. Red1 {[%clk 0:00:22.7]} 35... Kf8 {[%clk 0:00:06.8]} 36.
Rd7 {[%clk 0:00:18.9]} 36... Bc6 {[%clk 0:00:05]} 37. Bxc6 {[%clk 0:00:18.7]}
37... Qxc6 {[%clk 0:00:05.4]} 38. Rd6 {[%clk 0:00:13.7]} 38... Qc7 {[%clk
0:00:04.9]} 39. Qe5 {[%clk 0:00:09.7]} 39... c2 {[%clk 0:00:03.4]} 40. g3 {[%clk
0:00:08.9]} 40... Kg8 {[%clk 0:00:03.4]} 41. h4 {[%clk 0:00:09]} 41... Kh8
{[%clk 0:00:03.6]} 42. Qe6 {[%clk 0:00:09.5]} 42... Ng6 {[%clk 0:00:03.3]} 43.
h5 {[%clk 0:00:08.4]} 43... Nf8 {[%clk 0:00:02.4]} 44. Qd5 {[%clk 0:00:08.6]}
44... Re8 {[%clk 0:00:02.8]} 45. Rxc2 {[%clk 0:00:08.5]} 45... e3 {[%clk
0:00:03.4]} 46. Rxc7 {[%clk 0:00:08.3]} 46... e2 {[%clk 0:00:04.1]} 47. Re6
{[%clk 0:00:07.4]} 47... Nxe6 {[%clk 0:00:02.8]} 48. Qxe6 {[%clk 0:00:08.3]}
48... e1=Q+ {[%clk 0:00:02.3]} 49. Qxe1 {[%clk 0:00:07.3]} 49... Rxe1+ {[%clk
0:00:03.2]} 50. Kg2 {[%clk 0:00:07.9]} 50... Re8 {[%clk 0:00:03.6]} 51. Ra7
{[%clk 0:00:08.1]} 51... g6 {[%clk 0:00:04.1]} 52. h6 {[%clk 0:00:08.1]} 52...
Rg8 {[%clk 0:00:04.1]} 53. Rxa6 {[%clk 0:00:08.3]} 53... g5 {[%clk 0:00:05]} 54.
Kf3 {[%clk 0:00:08.5]} 54... f4 {[%clk 0:00:05.9]} 55. gxf4 {[%clk 0:00:08.8]}
55... gxf4 {[%clk 0:00:06.8]} 56. Kxf4 {[%clk 0:00:09.6]} 56... Rf8+ {[%clk
0:00:07.4]} 57. Kg3 {[%clk 0:00:09.8]} 57... Rc8 {[%clk 0:00:08.3]} 58. f4
{[%clk 0:00:09.8]} 58... Rb8 {[%clk 0:00:08.9]} 59. Kg4 {[%clk 0:00:10.1]} 59...
Rg8+ {[%clk 0:00:09.5]} 60. Kf5 {[%clk 0:00:10.4]} 60... Rf8+ {[%clk 0:00:10.4]}
61. Kg5 {[%clk 0:00:10.9]} 61... Rb8 {[%clk 0:00:11.3]} 62. f5 {[%clk
0:00:11.3]} 62... Rg8+ {[%clk 0:00:11.9]} 63. Kh5 {[%clk 0:00:11.5]} 63... Rb8
{[%clk 0:00:12.8]} 64. Ra7 {[%clk 0:00:11.6]} 64... Kg8 {[%clk 0:00:13.7]} 65.
Rg7+ {[%clk 0:00:10.8]} 65... Kh8 {[%clk 0:00:14.4]} 66. f6 {[%clk 0:00:10.5]}
66... Rb5+ {[%clk 0:00:15.1]} 67. Kg4 {[%clk 0:00:10.9]} 67... Rb4+ {[%clk
0:00:15.3]} 68. Kf5 {[%clk 0:00:11.3]} 68... Rf4+ {[%clk 0:00:15.3]} 69. Ke5
{[%clk 0:00:11]} 69... Rxf6 {[%clk 0:00:15.9]} 70. Kxf6 {[%clk 0:00:10.2]}
1/2-1/2

[Event "Late-Titled-Tuesday-Blitz-April-16-2024"]
[Site "Chess.com"]
[Date "2024.04.16"]
[Round "5"]
[White "Sanan_Sjugirov"]
[Black "Nimrod_Veinberg"]
[Result "1/2-1/2"]
[WhiteElo "3017"]
[BlackElo "2738"]
[TimeControl "180+1"]
[EndTime "14:54:06 PDT"]
[Termination "Game drawn by repetition"]

1. e4 {[%clk 0:03:00.9]} 1... c5 {[%clk 0:02:56.2]} 2. Nc3 {[%clk 0:02:59.9]}
2... e6 {[%clk 0:02:54.7]} 3. Nf3 {[%clk 0:02:57.9]} 3... a6 {[%clk 0:02:54]} 4.
d4 {[%clk 0:02:57.7]} 4... cxd4 {[%clk 0:02:54.1]} 5. Nxd4 {[%clk 0:02:58.6]}
5... b5 {[%clk 0:02:54.3]} 6. Bd3 {[%clk 0:02:59]} 6... Bb7 {[%clk 0:02:53.3]}
7. O-O {[%clk 0:02:58.8]} 7... Nc6 {[%clk 0:02:53]} 8. Nxc6 {[%clk 0:02:59.2]}
8... Bxc6 {[%clk 0:02:53.9]} 9. Re1 {[%clk 0:02:58.4]} 9... Ne7 {[%clk
0:02:39.9]} 10. Qh5 {[%clk 0:02:53.8]} 10... Ng6 {[%clk 0:02:38.4]} 11. a4
{[%clk 0:02:49.9]} 11... Bb4 {[%clk 0:02:34.9]} 12. Bd2 {[%clk 0:02:44.1]} 12...
O-O {[%clk 0:02:29.7]} 13. axb5 {[%clk 0:01:20.6]} 13... axb5 {[%clk 0:02:30]}
14. Rxa8 {[%clk 0:01:18.6]} 14... Qxa8 {[%clk 0:02:30.9]} 15. Bxb5 {[%clk
0:01:19.1]} 15... Rb8 {[%clk 0:02:16.3]} 16. Bd3 {[%clk 0:01:16.4]} 16... Bd6
{[%clk 0:02:09.3]} 17. b3 {[%clk 0:01:14.6]} 17... Nf4 {[%clk 0:02:06.3]} 18.
Bxf4 {[%clk 0:01:12.3]} 18... Bxf4 {[%clk 0:02:07]} 19. Ne2 {[%clk 0:01:06]}
19... g6 {[%clk 0:01:42.6]} 20. Qc5 {[%clk 0:00:55.2]} 20... d6 {[%clk
0:01:39.3]} 21. Qd4 {[%clk 0:00:44.5]} 21... Be5 {[%clk 0:01:39.5]} 22. Qe3
{[%clk 0:00:44.9]} 22... Qa5 {[%clk 0:01:38.1]} 23. Rf1 {[%clk 0:00:42.8]} 23...
Ra8 {[%clk 0:01:27.7]} 24. Nd4 {[%clk 0:00:42.5]} 24... Bd7 {[%clk 0:01:24.1]}
25. Nf3 {[%clk 0:00:42.8]} 25... Bg7 {[%clk 0:01:22.4]} 26. Rd1 {[%clk
0:00:40.2]} 26... Qc7 {[%clk 0:01:18.2]} 27. h3 {[%clk 0:00:38.3]} 27... Bc6
{[%clk 0:01:11.7]} 28. Nd4 {[%clk 0:00:33.9]} 28... Bd7 {[%clk 0:01:09]} 29. Nf3
{[%clk 0:00:32.9]} 29... Bc6 {[%clk 0:01:08.7]} 30. b4 {[%clk 0:00:31.8]} 30...
Bb7 {[%clk 0:00:55.8]} 31. c4 {[%clk 0:00:25.3]} 31... Ra3 {[%clk 0:00:52.6]}
32. Qc1 {[%clk 0:00:25.1]} 32... Rc3 {[%clk 0:00:50.5]} 33. Qb1 {[%clk
0:00:24.1]} 33... f5 {[%clk 0:00:48.4]} 34. c5 {[%clk 0:00:16.5]} 34... dxc5
{[%clk 0:00:37.4]} 35. bxc5 {[%clk 0:00:17.4]} 35... Rxc5 {[%clk 0:00:37.5]} 36.
Qa2 {[%clk 0:00:17.7]} 36... Qc6 {[%clk 0:00:18.2]} 37. Ng5 {[%clk 0:00:13.5]}
37... Rc1 {[%clk 0:00:18.4]} 38. Be2 {[%clk 0:00:07.5]} 38... Rxd1+ {[%clk
0:00:14.6]} 39. Bxd1 {[%clk 0:00:08.4]} 39... Bc8 {[%clk 0:00:09.3]} 40. exf5
{[%clk 0:00:05.7]} 40... Qc1 {[%clk 0:00:08.2]} 41. Qc2 {[%clk 0:00:04.1]} 41...
Qxc2 {[%clk 0:00:07.8]} 42. Bxc2 {[%clk 0:00:05]} 42... exf5 {[%clk 0:00:08.2]}
43. Bb3+ {[%clk 0:00:05.3]} 43... Kf8 {[%clk 0:00:08.4]} 44. Nxh7+ {[%clk
0:00:05.7]} 44... Ke7 {[%clk 0:00:09.1]} 45. Ng5 {[%clk 0:00:06.2]} 45... Bf6
{[%clk 0:00:09.8]} 46. Nf3 {[%clk 0:00:06.2]} 46... Bb7 {[%clk 0:00:10.5]} 47.
Ne1 {[%clk 0:00:06.2]} 47... Be4 {[%clk 0:00:09.1]} 48. Bc2 {[%clk 0:00:06.5]}
48... Bc3 {[%clk 0:00:08.9]} 49. Nd3 {[%clk 0:00:05.9]} 49... Bxd3 {[%clk
0:00:08.9]} 50. Bxd3 {[%clk 0:00:06.8]} 50... Kf6 {[%clk 0:00:09.5]} 51. g3
{[%clk 0:00:07.4]} 51... g5 {[%clk 0:00:09.6]} 52. Kg2 {[%clk 0:00:08.3]} 52...
f4 {[%clk 0:00:09.2]} 53. gxf4 {[%clk 0:00:08.7]} 53... gxf4 {[%clk 0:00:09.8]}
54. h4 {[%clk 0:00:09.4]} 54... Kg7 {[%clk 0:00:07]} 55. Kf3 {[%clk 0:00:09.8]}
55... Bd4 {[%clk 0:00:07.3]} 56. Kg2 {[%clk 0:00:09.2]} 56... Kh6 {[%clk
0:00:07.6]} 57. f3 {[%clk 0:00:10.1]} 57... Kh5 {[%clk 0:00:07.6]} 58. Kh3
{[%clk 0:00:11]} 58... Bf2 {[%clk 0:00:07]} 59. Bc4 {[%clk 0:00:11.3]} 59... Kh6
{[%clk 0:00:07.6]} 60. Kg4 {[%clk 0:00:11.4]} 60... Bg3 {[%clk 0:00:08.3]} 61.
h5 {[%clk 0:00:11.7]} 61... Bh2 {[%clk 0:00:08.9]} 62. Bf7 {[%clk 0:00:12.1]}
62... Bg3 {[%clk 0:00:09.5]} 63. Bg6 {[%clk 0:00:13]} 63... Bh2 {[%clk
0:00:09.7]} 64. Be4 {[%clk 0:00:13.9]} 64... Bg3 {[%clk 0:00:10.1]} 65. Bg6
{[%clk 0:00:14.8]} 65... Bh2 {[%clk 0:00:10.3]} 66. Be4 {[%clk 0:00:15.7]} 66...
Bg3 {[%clk 0:00:10.7]} 67. Bg6 {[%clk 0:00:16.6]} 1/2-1/2

[Event "Late-Titled-Tuesday-Blitz-April-16-2024"]
[Site "Chess.com"]
[Date "2024.04.16"]
[Round "5"]
[White "LUISMIGUELOV"]
[Black "SergioMoralesG"]
[Result "0-1"]
[WhiteElo "2185"]
[BlackElo "2431"]
[TimeControl "180+1"]
[EndTime "14:54:06 PDT"]
[Termination "SergioMoralesG won on time"]

1. d4 {[%clk 0:03:00.9]} 1... d5 {[%clk 0:02:59.2]} 2. c3 {[%clk 0:03:00.7]}
2... Nf6 {[%clk 0:02:58.7]} 3. Bf4 {[%clk 0:03:00.4]} 3... e6 {[%clk 0:02:57.7]}
4. Nd2 {[%clk 0:03:00.7]} 4... c5 {[%clk 0:02:57.7]} 5. e3 {[%clk 0:03:00.8]}
5... Bd6 {[%clk 0:02:57.3]} 6. Bxd6 {[%clk 0:02:59.3]} 6... Qxd6 {[%clk
0:02:56.6]} 7. Bd3 {[%clk 0:02:59.5]} 7... O-O {[%clk 0:02:52.6]} 8. f4 {[%clk
0:02:59.3]} 8... b6 {[%clk 0:02:52.1]} 9. Qe2 {[%clk 0:02:56.1]} 9... a5 {[%clk
0:02:51.8]} 10. Ngf3 {[%clk 0:02:53.7]} 10... Ba6 {[%clk 0:02:51.7]} 11. Bxa6
{[%clk 0:02:52.3]} 11... Nxa6 {[%clk 0:02:51.8]} 12. Ne5 {[%clk 0:02:47]} 12...
Nd7 {[%clk 0:02:38.7]} 13. O-O {[%clk 0:02:40.6]} 13... f6 {[%clk 0:02:37.7]}
14. Nxd7 {[%clk 0:02:38]} 14... Qxd7 {[%clk 0:02:38.6]} 15. a4 {[%clk
0:02:37.3]} 15... Nb8 {[%clk 0:02:26.6]} 16. dxc5 {[%clk 0:02:06.8]} 16... bxc5
{[%clk 0:02:25.6]} 17. c4 {[%clk 0:02:06.5]} 17... Nc6 {[%clk 0:02:23.6]} 18.
cxd5 {[%clk 0:02:05.4]} 18... exd5 {[%clk 0:02:22.2]} 19. Qb5 {[%clk 0:02:02]}
19... c4 {[%clk 0:02:05.2]} 20. e4 {[%clk 0:01:47.2]} 20... Qa7+ {[%clk
0:01:27.8]} 21. Kh1 {[%clk 0:01:45]} 21... Nb4 {[%clk 0:01:27.2]} 22. exd5
{[%clk 0:01:31.5]} 22... Rfc8 {[%clk 0:01:10.1]} 23. Nxc4 {[%clk 0:01:23.9]}
23... Rc5 {[%clk 0:01:07.3]} 24. Qb6 {[%clk 0:01:05.4]} 24... Rxc4 {[%clk
0:01:07.2]} 25. Qe6+ {[%clk 0:01:05.9]} 25... Qf7 {[%clk 0:01:02.4]} 26. f5
{[%clk 0:00:55.9]} 26... Nxd5 {[%clk 0:00:57.3]} 27. b3 {[%clk 0:00:50.2]} 27...
Qxe6 {[%clk 0:00:52.3]} 28. fxe6 {[%clk 0:00:49.4]} 28... Re4 {[%clk 0:00:52.9]}
29. Rae1 {[%clk 0:00:47.6]} 29... Rxe1 {[%clk 0:00:52.1]} 30. Rxe1 {[%clk
0:00:47.6]} 30... Kf8 {[%clk 0:00:49.9]} 31. g4 {[%clk 0:00:46.5]} 31... Ke7
{[%clk 0:00:49.4]} 32. Kg2 {[%clk 0:00:46.9]} 32... Rb8 {[%clk 0:00:48.9]} 33.
Rb1 {[%clk 0:00:43]} 33... Kxe6 {[%clk 0:00:48.8]} 34. Kf3 {[%clk 0:00:43.1]}
34... Rb4 {[%clk 0:00:46.6]} 35. h3 {[%clk 0:00:42.3]} 35... Ke5 {[%clk
0:00:44.6]} 36. Re1+ {[%clk 0:00:36.4]} 36... Kd6 {[%clk 0:00:41.4]} 37. Rb1
{[%clk 0:00:35.9]} 37... Nb6 {[%clk 0:00:41]} 38. h4 {[%clk 0:00:31.1]} 38...
Ke5 {[%clk 0:00:35.9]} 39. Re1+ {[%clk 0:00:29.5]} 39... Kd6 {[%clk 0:00:35.1]}
40. Rd1+ {[%clk 0:00:27.6]} 40... Nd5 {[%clk 0:00:33.8]} 41. Rb1 {[%clk
0:00:26.3]} 41... g6 {[%clk 0:00:30]} 42. h5 {[%clk 0:00:25.7]} 42... gxh5
{[%clk 0:00:29.9]} 43. gxh5 {[%clk 0:00:25.8]} 43... Rh4 {[%clk 0:00:30.1]} 44.
Rg1 {[%clk 0:00:20]} 44... Rxh5 {[%clk 0:00:28.7]} 45. Rg7 {[%clk 0:00:20.5]}
45... Rh3+ {[%clk 0:00:28.1]} 46. Kg4 {[%clk 0:00:19.3]} 46... Rxb3 {[%clk
0:00:27.9]} 47. Rxh7 {[%clk 0:00:18.8]} 47... Rb4+ {[%clk 0:00:28]} 48. Kf5
{[%clk 0:00:17.7]} 48... Rxa4 {[%clk 0:00:27.6]} 49. Ra7 {[%clk 0:00:16.9]}
49... Kc6 {[%clk 0:00:24.5]} 50. Ke6 {[%clk 0:00:11.2]} 50... Re4+ {[%clk
0:00:20.6]} 51. Kf5 {[%clk 0:00:10.8]} 51... Re5+ {[%clk 0:00:20.9]} 52. Kg4
{[%clk 0:00:10.5]} 52... Kb5 {[%clk 0:00:20.5]} 53. Rf7 {[%clk 0:00:08.3]} 53...
a4 {[%clk 0:00:19.8]} 54. Rb7+ {[%clk 0:00:08]} 54... Nb6 {[%clk 0:00:20]} 55.
Ra7 {[%clk 0:00:05.4]} 55... Kb4 {[%clk 0:00:19.6]} 56. Kf4 {[%clk 0:00:05.1]}
56... a3 {[%clk 0:00:18.6]} 57. Ra6 {[%clk 0:00:05.2]} 57... Rb5 {[%clk
0:00:18.5]} 58. Ke4 {[%clk 0:00:03.1]} 58... Kb3 {[%clk 0:00:17.6]} 0-1

[Event "Late-Titled-Tuesday-Blitz-April-16-2024"]
[Site "Chess.com"]
[Date "2024.04.16"]
[Round "5"]
[White "rikchessmx"]
[Black "Hakiki_satranc"]
[Result "1-0"]
[WhiteElo "2220"]
[BlackElo "2421"]
[TimeControl "180+1"]
[EndTime "14:54:06 PDT"]
[Termination "rikchessmx won by checkmate"]

1. e4 {[%clk 0:03:00.9]} 1... c5 {[%clk 0:02:57.7]} 2. Nf3 {[%clk 0:03:00.3]}
2... Nc6 {[%clk 0:02:58.3]} 3. d4 {[%clk 0:03:01.1]} 3... cxd4 {[%clk
0:02:59.1]} 4. Nxd4 {[%clk 0:03:00.9]} 4... Nf6 {[%clk 0:02:59.7]} 5. Nc3 {[%clk
0:03:00.5]} 5... e5 {[%clk 0:03:00.3]} 6. Ndb5 {[%clk 0:02:59.9]} 6... d6 {[%clk
0:03:00.8]} 7. a4 {[%clk 0:02:59.6]} 7... Be6 {[%clk 0:02:50.1]} 8. Na3 {[%clk
0:03:00.5]} 8... d5 {[%clk 0:02:47.4]} 9. exd5 {[%clk 0:02:59.8]} 9... Nxd5
{[%clk 0:02:48.3]} 10. Nxd5 {[%clk 0:02:59.4]} 10... Bxd5 {[%clk 0:02:46.3]} 11.
Nc4 {[%clk 0:02:55.6]} 11... Bc5 {[%clk 0:02:31.6]} 12. Qg4 {[%clk 0:02:49.6]}
12... O-O {[%clk 0:02:21.1]} 13. Bg5 {[%clk 0:02:36.3]} 13... f6 {[%clk
0:02:06.8]} 14. Bh6 {[%clk 0:02:34.7]} 14... Qe7 {[%clk 0:01:50.7]} 15. O-O-O
{[%clk 0:02:14.2]} 15... Be6 {[%clk 0:01:38.7]} 16. Qg3 {[%clk 0:02:10.5]} 16...
Nd4 {[%clk 0:01:31.6]} 17. Be3 {[%clk 0:02:02.5]} 17... Nf5 {[%clk 0:01:29.2]}
18. Qf3 {[%clk 0:01:59.5]} 18... Nxe3 {[%clk 0:01:24.7]} 19. Nxe3 {[%clk
0:01:58.6]} 19... Rac8 {[%clk 0:01:15.3]} 20. Kb1 {[%clk 0:01:58.2]} 20... Kh8
{[%clk 0:00:58.7]} 21. Nf5 {[%clk 0:01:54.4]} 21... Qc7 {[%clk 0:00:55.5]} 22.
Bd3 {[%clk 0:01:51.3]} 22... Qa5 {[%clk 0:00:44.2]} 23. Qe4 {[%clk 0:01:37]}
23... Qb4 {[%clk 0:00:29.9]} 24. Qxb4 {[%clk 0:01:30.8]} 24... Bxb4 {[%clk
0:00:30.8]} 25. c3 {[%clk 0:01:28.1]} 25... Bc5 {[%clk 0:00:29.2]} 26. f3 {[%clk
0:01:18.9]} 26... Rfd8 {[%clk 0:00:27.8]} 27. Bc2 {[%clk 0:01:17.1]} 27... g6
{[%clk 0:00:27.6]} 28. Ng3 {[%clk 0:01:13.6]} 28... Kg7 {[%clk 0:00:26.9]} 29.
Ne4 {[%clk 0:01:12.6]} 29... Be7 {[%clk 0:00:26]} 30. g4 {[%clk 0:01:10.9]}
30... b6 {[%clk 0:00:23.1]} 31. h4 {[%clk 0:01:09.6]} 31... Bc4 {[%clk
0:00:19.5]} 32. h5 {[%clk 0:01:06.5]} 32... Be2 {[%clk 0:00:17.5]} 33. Rxd8
{[%clk 0:01:04.8]} 33... Rxd8 {[%clk 0:00:18.4]} 34. Rh3 {[%clk 0:01:04.6]}
34... Bd1 {[%clk 0:00:10]} 35. hxg6 {[%clk 0:01:01.8]} 35... Bxc2+ {[%clk
0:00:08.9]} 36. Kxc2 {[%clk 0:01:01.5]} 36... hxg6 {[%clk 0:00:09.8]} 37. Rh2
{[%clk 0:00:59.8]} 37... Rd5 {[%clk 0:00:09.7]} 38. Rd2 {[%clk 0:00:58.3]} 38...
Rxd2+ {[%clk 0:00:09.8]} 39. Kxd2 {[%clk 0:00:58.3]} 39... f5 {[%clk 0:00:10.7]}
40. gxf5 {[%clk 0:00:58.1]} 40... gxf5 {[%clk 0:00:11.6]} 41. Ng3 {[%clk
0:00:55.9]} 41... Kg6 {[%clk 0:00:11.9]} 42. Ke2 {[%clk 0:00:54.2]} 42... Kg5
{[%clk 0:00:10.8]} 43. Nf1 {[%clk 0:00:51.6]} 43... Kf4 {[%clk 0:00:10.3]} 44.
Ne3 {[%clk 0:00:51.3]} 44... Bc5 {[%clk 0:00:09.9]} 45. Nd5+ {[%clk 0:00:51.2]}
45... Kg3 {[%clk 0:00:10.2]} 46. b4 {[%clk 0:00:50.4]} 46... Bd6 {[%clk
0:00:09.5]} 47. c4 {[%clk 0:00:49.5]} 47... e4 {[%clk 0:00:08.4]} 48. fxe4
{[%clk 0:00:49.5]} 48... f4 {[%clk 0:00:09.3]} 49. a5 {[%clk 0:00:43]} 49... Kg2
{[%clk 0:00:07.6]} 50. Nxf4+ {[%clk 0:00:42.2]} 50... Bxf4 {[%clk 0:00:08.5]}
51. axb6 {[%clk 0:00:42]} 51... axb6 {[%clk 0:00:09.4]} 52. Kd3 {[%clk
0:00:40.4]} 52... Kf3 {[%clk 0:00:09.5]} 53. Kd4 {[%clk 0:00:39.3]} 53... Bd2
{[%clk 0:00:06.6]} 54. c5 {[%clk 0:00:38.1]} 54... b5 {[%clk 0:00:05.7]} 55. c6
{[%clk 0:00:36]} 55... Be3+ {[%clk 0:00:05.9]} 56. Kd5 {[%clk 0:00:35.9]} 56...
Bb6 {[%clk 0:00:04.9]} 57. e5 {[%clk 0:00:36.2]} 57... Ke3 {[%clk 0:00:03.9]}
58. e6 {[%clk 0:00:36.5]} 58... Bd8 {[%clk 0:00:03.2]} 59. Kd6 {[%clk
0:00:36.9]} 59... Kd4 {[%clk 0:00:03]} 60. e7 {[%clk 0:00:37.2]} 60... Bxe7+
{[%clk 0:00:03.2]} 61. Kxe7 {[%clk 0:00:37.6]} 61... Kc4 {[%clk 0:00:04.1]} 62.
c7 {[%clk 0:00:38]} 62... Kxb4 {[%clk 0:00:05]} 63. c8=Q {[%clk 0:00:38.2]}
63... Kb3 {[%clk 0:00:05.7]} 64. Kd6 {[%clk 0:00:38.6]} 64... b4 {[%clk
0:00:06.6]} 65. Kd5 {[%clk 0:00:38.9]} 65... Kb2 {[%clk 0:00:06.8]} 66. Kd4
{[%clk 0:00:39.2]} 66... b3 {[%clk 0:00:07.7]} 67. Kd3 {[%clk 0:00:39.3]} 67...
Kb1 {[%clk 0:00:07.8]} 68. Kc3 {[%clk 0:00:37.5]} 68... b2 {[%clk 0:00:08.7]}
69. Qf5+ {[%clk 0:00:36.4]} 69... Ka1 {[%clk 0:00:07.6]} 70. Qa5+ {[%clk
0:00:35.6]} 70... Kb1 {[%clk 0:00:07.6]} 71. Qb4 {[%clk 0:00:36.2]} 71... Kc1
{[%clk 0:00:07.5]} 72. Qxb2+ {[%clk 0:00:35.9]} 72... Kd1 {[%clk 0:00:08.4]} 73.
Qd2# {[%clk 0:00:36.3]} 1-0

[Event "Late-Titled-Tuesday-Blitz-April-16-2024"]
[Site "Chess.com"]
[Date "2024.04.16"]
[Round "5"]
[White "bipe137"]
[Black "Harsha_Bharathakoti"]
[Result "0-1"]
[WhiteElo "2711"]
[BlackElo "2920"]
[TimeControl "180+1"]
[EndTime "14:54:12 PDT"]
[Termination "Harsha_Bharathakoti won by resignation"]

1. d4 {[%clk 0:03:00.9]} 1... d5 {[%clk 0:02:59.1]} 2. c4 {[%clk 0:02:53.1]}
2... e6 {[%clk 0:02:59]} 3. Nc3 {[%clk 0:02:52.9]} 3... a6 {[%clk 0:02:59.1]} 4.
cxd5 {[%clk 0:02:52.1]} 4... exd5 {[%clk 0:02:59]} 5. Nf3 {[%clk 0:02:52.7]}
5... c6 {[%clk 0:02:59]} 6. Bf4 {[%clk 0:02:52.6]} 6... Bd6 {[%clk 0:02:58.8]}
7. Bxd6 {[%clk 0:02:52.8]} 7... Qxd6 {[%clk 0:02:59.7]} 8. e4 {[%clk 0:02:53]}
8... dxe4 {[%clk 0:02:59.5]} 9. Nxe4 {[%clk 0:02:53.9]} 9... Qe7 {[%clk
0:02:58.1]} 10. Qe2 {[%clk 0:02:54.2]} 10... Be6 {[%clk 0:02:54.8]} 11. Nc5
{[%clk 0:02:53.6]} 11... Nd7 {[%clk 0:02:48]} 12. Nxe6 {[%clk 0:02:49.9]} 12...
Qxe6 {[%clk 0:02:47]} 13. Qxe6+ {[%clk 0:02:49.7]} 13... fxe6 {[%clk 0:02:47.9]}
14. Bc4 {[%clk 0:02:48.4]} 14... Ke7 {[%clk 0:02:45.1]} 15. O-O {[%clk
0:02:40.6]} 15... Nb6 {[%clk 0:02:45]} 16. Bb3 {[%clk 0:02:39.8]} 16... Nd5
{[%clk 0:02:00.3]} 17. Rfe1 {[%clk 0:02:32]} 17... Kf6 {[%clk 0:01:44.2]} 18.
Re4 {[%clk 0:02:10.3]} 18... Nh6 {[%clk 0:01:41.8]} 19. Rae1 {[%clk 0:02:09.2]}
19... Rae8 {[%clk 0:01:36.3]} 20. g4 {[%clk 0:01:58.6]} 20... Nf7 {[%clk
0:01:28.2]} 21. h4 {[%clk 0:01:49.6]} 21... h6 {[%clk 0:01:23.6]} 22. g5+ {[%clk
0:01:24]} 22... hxg5 {[%clk 0:01:22.3]} 23. Bxd5 {[%clk 0:01:17.2]} 23... cxd5
{[%clk 0:01:20.1]} 24. hxg5+ {[%clk 0:01:17.3]} 24... Kf5 {[%clk 0:00:58.6]} 25.
R4e3 {[%clk 0:01:04.1]} 25... Rh5 {[%clk 0:00:21.7]} 26. g6 {[%clk 0:01:03.5]}
26... Ng5 {[%clk 0:00:07.2]} 27. Nxg5 {[%clk 0:00:14.4]} 27... Rxg5+ {[%clk
0:00:07.1]} 28. Kf1 {[%clk 0:00:15]} 28... Kf6 {[%clk 0:00:05.7]} 29. Re5 {[%clk
0:00:06.4]} 29... Rxe5 {[%clk 0:00:04.7]} 30. Rxe5 {[%clk 0:00:07.3]} 30... Kxg6
{[%clk 0:00:04.7]} 31. Ke2 {[%clk 0:00:07.7]} 31... Kf6 {[%clk 0:00:05.1]} 32.
Rh5 {[%clk 0:00:07.7]} 32... Rc8 {[%clk 0:00:05.1]} 33. Kd2 {[%clk 0:00:08.1]}
33... Rc4 {[%clk 0:00:05.4]} 34. Rh4 {[%clk 0:00:08.5]} 34... g5 {[%clk
0:00:04.2]} 35. Rh6+ {[%clk 0:00:07.7]} 35... Kf5 {[%clk 0:00:04.9]} 36. Kd3
{[%clk 0:00:05]} 36... Rc1 {[%clk 0:00:05.5]} 37. Rh8 {[%clk 0:00:05]} 37...
Rd1+ {[%clk 0:00:03.9]} 38. Kc3 {[%clk 0:00:03]} 38... Rf1 {[%clk 0:00:02.2]}
39. Rf8+ {[%clk 0:00:03.6]} 39... Ke4 {[%clk 0:00:02.6]} 40. Rf6 {[%clk
0:00:02.1]} 40... e5 {[%clk 0:00:02.6]} 41. dxe5 {[%clk 0:00:02.3]} 41... Kxe5
{[%clk 0:00:02.7]} 42. Rf8 {[%clk 0:00:02.6]} 42... Rc1+ {[%clk 0:00:02]} 43.
Kd2 {[%clk 0:00:02.9]} 43... Rc4 {[%clk 0:00:02.5]} 44. Kd3 {[%clk 0:00:03.2]}
44... Rd4+ {[%clk 0:00:02.7]} 45. Ke3 {[%clk 0:00:02.9]} 45... Re4+ {[%clk
0:00:03.4]} 46. Kd3 {[%clk 0:00:03.5]} 46... Rf4 {[%clk 0:00:04.3]} 47. Re8+
{[%clk 0:00:03.5]} 47... Kd6 {[%clk 0:00:04.6]} 48. Rd8+ {[%clk 0:00:04.2]}
48... Ke6 {[%clk 0:00:04.5]} 49. Rh8 {[%clk 0:00:05.1]} 49... Rxf2 {[%clk
0:00:04.1]} 50. Re8+ {[%clk 0:00:06]} 50... Kd6 {[%clk 0:00:04]} 51. Rd8+ {[%clk
0:00:04]} 51... Ke5 {[%clk 0:00:04.5]} 52. Re8+ {[%clk 0:00:03.1]} 52... Kf4
{[%clk 0:00:04.9]} 53. Rf8+ {[%clk 0:00:01.1]} 53... Kg3 {[%clk 0:00:05]} 54.
Rg8 {[%clk 0:00:01.7]} 54... g4 {[%clk 0:00:05.5]} 55. Rg7 {[%clk 0:00:02.1]}
55... Rxb2 {[%clk 0:00:05.8]} 56. Rxb7 {[%clk 0:00:03]} 56... Rxb7 {[%clk
0:00:05.9]} 0-1